bitfinex-derivatives/quotes_ETHF0:USTF0_20241017
["timestamp","ask_amount","ask_price","bid_price","bid_amount"]
[1729161242519,0.38379,2606.3,2606.2,0.38377]
[1729161242724,0.38376,2606.5,2606.4,0.38375]
[1729161243421,1.77098,2606.8,2606.7,0.3837]
[1729161243422,0.38373,2606.8,2606.7,0.3837]
[1729161243928,0.3919,2606.9,2606.3,0.4095]
[1729161244124,0.38365,2607.2,2607.1,0.38365]
[1729161244325,3.2078,2607.3,2606.6,6.1978]
[1729161244533,0.38368,2607.0,2606.9,0.38368]
[1729161244915,3.94912,2607.2,2606.4,4.49294684]
[1729161245121,0.4224,2606.9,2606.5,0.4017]
[1729161245428,0.38373,2606.6,2606.5,0.78543]
[1729161246124,0.815,2606.9,2606.3,3.2078]
[1729161246325,3.411,2606.8,2606.1,1.50294684]
[1729161246530,3.411,2606.8,2606.0,0.4221]
[1729161246531,0.38377,2606.4,2606.3,0.38376]
[1729161246924,0.9593,2606.7,2606.0,0.4221]
[1729161247228,0.38379,2606.3,2606.2,0.38378]
[1729161247415,0.95934,2606.6,2606.0,0.4221]
[1729161247416,0.38381,2606.1,2606.0,0.4221]
[1729161247619,0.38381,2606.1,2606.0,0.80592]
[1729161247916,0.38381,2606.1,2606.0,0.4221]
[1729161248121,0.38381,2606.1,2606.0,0.80592]
[1729161248528,0.38381,2606.1,2606.0,0.4221]
[1729161248832,0.38381,2606.1,2606.0,0.80592]
[1729161249027,0.38381,2606.1,2606.0,0.4221]
[1729161249229,0.38381,2606.1,2606.0,0.80592]
[1729161249422,0.38381,2606.1,2606.0,0.4221]
[1729161249833,0.38381,2606.1,2606.0,0.80592]
[1729161251726,0.38385,2605.9,2605.8,0.38383]
[1729161252638,0.38384,2606.0,2605.9,0.38382]
[1729161253031,0.38385,2605.9,2605.8,0.38383]
[1729161254335,0.38388,2605.6,2605.5,0.38388]
[1729161254529,0.38389,2605.5,2605.4,0.3905]
[1729161255036,0.38389,2605.6,2605.4,0.77441]
[1729161255231,0.38389,2605.6,2605.4,0.3905]
[1729161255430,0.38389,2605.5,2605.4,0.7744]
[1729161255627,0.38391,2605.4,2605.3,0.38392]
[1729161256129,0.3839,2605.5,2605.4,0.3839]
[1729161256330,0.38391,2605.4,2605.3,0.38392]
[1729161256524,0.38391,2605.4,2605.1,0.3905]
[1729161256525,0.3839,2605.5,2605.4,0.3839]
[1729161256731,0.38389,2605.5,2605.1,0.3905]
[1729161256932,0.38391,2605.5,2605.3,0.38392]
[1729161257538,0.38391,2605.5,2605.4,0.38391]
[1729161257727,2.99,2605.5,2605.1,0.3905]
[1729161257927,2.99,2605.2,2605.1,0.3905]
[1729161258139,2.99,2605.2,2604.4,3.2078]
[1729161258338,3.2078,2605.3,2604.6,3.4152]
[1729161258640,0.3839,2605.5,2605.4,0.38389]
[1729161258839,3.4107,2605.6,2605.0,3.2078]
[1729161259045,0.3839,2605.5,2605.4,0.3839]
[1729161259237,3.4107,2605.6,2605.1,0.4252]
[1729161259437,2.99,2605.4,2605.1,0.4252]
[1729161259735,0.38394,2605.2,2605.1,0.80914]
[1729161259936,2.99,2605.4,2605.1,0.4252]
[1729161260138,0.38391,2605.5,2605.4,0.38391]
[1729161260535,3.4107,2605.6,2605.2,0.4155]
[1729161260730,2.99,2605.4,2605.1,0.4252]
[1729161261039,0.38392,2605.3,2605.2,0.38393]
[1729161261433,2.99,2605.4,2605.1,0.4252]
[1729161261638,3.37392,2605.4,2605.3,0.38392]
[1729161261838,0.38394,2605.3,2605.2,0.38393]
[1729161262048,0.38394,2605.2,2605.1,0.80914]
[1729161262545,2.99,2605.2,2604.6,1.37556]
[1729161262748,2.99,2605.2,2603.8,0.20502631]
[1729161262749,3.2078,2605.2,2604.7,0.4009]
[1729161262939,2.99,2604.7,2604.1,3.2078]
[1729161263141,0.4074,2604.6,2604.3,0.3974]
[1729161263335,0.38405,2604.5,2604.4,0.38405]
[1729161263741,0.38406,2604.4,2604.3,0.3974]
[1729161264246,0.38408,2604.3,2604.2,0.38408]
[1729161264455,0.4074,2604.6,2604.1,3.2078]
[1729161264643,0.38408,2604.3,2604.2,0.38408]
[1729161265046,0.38408,2604.3,2604.1,3.2078]
[1729161265047,0.38407,2604.4,2604.3,0.38406]
[1729161265349,3.37406,2604.4,2604.3,0.38407]
[1729161265538,3.37406,2604.4,2603.9,1.35772]
[1729161265539,0.38408,2604.3,2604.2,0.38408]
[1729161265737,0.4074,2604.6,2604.0,0.9603]
[1729161265940,3.59184,2604.5,2604.4,0.38404]
[1729161266143,0.38409,2604.2,2604.1,0.38409]
[1729161266346,2.99,2604.2,2603.7,0.404]
[1729161266536,0.79611,2604.1,2604.0,0.38411]
[1729161266851,0.7961,2604.1,2604.0,0.38411]
[1729161267052,0.412,2604.1,2604.0,0.38411]
[1729161267348,3.59188,2604.3,2604.2,0.38409]
[1729161267552,3.2078,2604.3,2604.2,0.38409]
[1729161267747,6.1978,2604.4,2604.3,0.38407]
[1729161267948,6.83,2604.4,2603.8,0.4169]
[1729161268159,6.83,2604.4,2603.7,4.1682]
[1729161268160,2.99,2604.3,2603.7,4.1682]
[1729161268458,3.37407,2604.3,2604.2,0.38407]
[1729161268643,2.99,2604.3,2604.2,0.38407]
[1729161268849,3.37407,2604.3,2604.2,0.38407]
[1729161269154,2.99,2604.3,2603.8,1.2428]
[1729161269361,0.38409,2604.2,2604.1,0.38409]
[1729161269656,2.99,2604.3,2603.8,1.2428]
[1729161269657,3.37408,2604.3,2604.2,0.38409]
[1729161269958,0.38409,2604.2,2604.1,0.38409]
[1729161270254,2.99,2604.3,2603.8,1.2428]
[1729161270450,3.2078,2604.4,2604.2,0.38409]
[1729161270747,3.2078,2604.4,2604.3,0.38407]
[1729161271544,3.2078,2604.4,2603.8,0.404]
[1729161271545,6.83,2604.4,2603.8,0.404]
[1729161271851,0.38413,2604.0,2603.9,0.38412]
[1729161272247,0.77862,2604.0,2603.9,0.38412]
[1729161272447,0.77862,2604.0,2603.8,0.404]
[1729161272448,0.3945,2604.0,2603.8,0.404]
[1729161272649,0.77863,2604.0,2603.9,0.38413]
[1729161272855,0.3945,2604.0,2603.8,0.404]
[1729161273054,0.3945,2604.0,2603.9,0.38413]
[1729161273055,0.77863,2604.0,2603.9,0.38413]
[1729161273252,0.38413,2603.9,2603.8,0.78813]
[1729161273447,0.3945,2604.0,2603.9,0.38413]
[1729161273448,0.77863,2604.0,2603.9,0.38413]
[1729161273651,0.3945,2604.0,2603.9,0.38413]
[1729161274247,0.77862,2604.0,2603.9,0.38413]
[1729161274448,0.3945,2604.0,2603.9,0.38413]
[1729161274763,3.78308,2604.3,2603.8,3.6118]
[1729161275056,0.38409,2604.2,2604.1,0.38409]
[1729161275261,0.38412,2604.0,2603.9,0.38412]
[1729161275458,3.7935,2604.3,2603.8,3.6118]
[1729161275664,0.38413,2604.0,2603.9,0.38412]
[1729161278057,0.38413,2603.9,2603.8,3.99593]
[1729161278361,2.99,2604.1,2603.8,3.6118]
[1729161278560,0.38413,2604.0,2603.9,0.38412]
[1729161278960,2.99,2604.1,2604.0,0.38412]
[1729161279152,3.3741,2604.1,2604.0,0.38412]
[1729161279555,0.79659,2604.2,2604.1,0.3841]
[1729161279961,4.63659,2604.2,2604.1,0.3841]
[1729161280157,0.38409,2604.2,2604.1,0.3841]
[1729161280357,0.3945,2604.3,2603.8,4.0424]
[1729161280564,3.37404,2604.5,2604.0,0.9603]
[1729161280864,3.3941,2604.5,2604.4,0.38406]
[1729161281064,3.77814,2604.5,2604.4,0.38406]
[1729161281860,3.3941,2604.5,2604.4,0.38406]
[1729161282050,0.4041,2604.5,2604.4,0.38406]
[1729161282364,7.2333,2604.5,2604.4,0.38406]
[1729161282560,7.61735,2604.5,2604.4,0.38406]
[1729161283663,3.77815,2604.5,2604.4,0.38406]
[1729161284067,0.38407,2604.4,2604.3,0.38406]
[1729161284272,0.38411,2604.1,2604.0,0.38411]
[1729161284460,3.37411,2604.1,2604.0,0.38411]
[1729161284658,6.83,2604.1,2603.6,1.42594]
[1729161284854,0.83522,2604.0,2603.9,0.38413]
[1729161285062,0.4511,2604.0,2603.9,0.38413]
[1729161287162,0.83522,2604.0,2603.9,0.38413]
[1729161287664,4.67522,2604.0,2603.9,0.38413]
[1729161287867,0.83522,2604.0,2603.9,0.38413]
[1729161289365,0.38415,2603.9,2603.8,0.38414]
[1729161289554,0.38414,2603.9,2603.8,0.38413]
[1729161289754,0.83523,2604.0,2603.9,0.38413]
[1729161292263,0.38414,2603.9,2603.8,0.38413]
[1729161293568,7.21494,2603.9,2603.8,0.38413]
[1729161293769,0.38414,2603.9,2603.8,0.38413]
[1729161293964,0.38414,2603.9,2603.6,0.96044]
[1729161293965,2.99,2604.1,2603.5,4.62766]
[1729161294266,0.38417,2603.7,2603.6,0.38416]
[1729161294755,0.87637,2603.7,2603.6,0.38416]
[1729161294955,4.71717,2603.7,2603.6,0.38416]
[1729161295156,10.5308,2603.7,2602.6,1.00049499]
[1729161295359,10.5308,2603.7,2602.2,5.20115935]
[1729161295360,6.1978,2603.0,2602.5,1.00049499]
[1729161295556,6.1978,2603.0,2602.6,0.38431]
[1729161295557,0.38428,2602.9,2602.6,0.38431]
[1729161295767,0.38428,2602.9,2602.2,6.1978]
[1729161295768,0.4922,2602.9,2602.2,6.1978]
[1729161295974,3.2078,2603.2,2602.8,0.38429]
[1729161295975,0.38426,2603.1,2602.8,0.38429]
[1729161296164,2.99,2602.9,2602.6,0.4826]
[1729161296365,3.37426,2603.1,2602.6,0.4826]
[1729161296666,2.99,2603.1,2602.6,0.4826]
[1729161296869,6.1978,2603.3,2602.9,0.38428]
[1729161297077,2.99,2603.1,2602.8,0.38429]
[1729161297268,0.38426,2603.0,2602.7,0.3843]
[1729161297468,2.99,2603.1,2602.6,0.4826]
[1729161297772,0.38426,2603.0,2602.6,0.4826]
[1729161298072,0.38426,2603.0,2602.8,0.38428]
[1729161298271,3.37425,2603.1,2602.8,0.38428]
[1729161298570,3.2078,2603.3,2603.0,0.38426]
[1729161298777,0.38424,2603.2,2603.1,1.4285]
[1729161299072,0.38428,2602.9,2602.6,0.38432]
[1729161299275,0.8305,2602.8,2602.3,1.00049499]
[1729161299464,0.8305,2602.8,2602.2,4.1641]
[1729161299465,0.38431,2602.7,2602.5,0.38434]
[1729161299772,0.4462,2602.8,2602.2,5.16459499]
[1729161299965,0.4462,2602.8,2602.5,0.38433]
[1729161300275,0.38428,2602.9,2602.6,3.37431]
[1729161300469,3.2078,2603.0,2602.7,1.3849]
[1729161300777,2.99,2603.1,2602.7,1.3849]
[1729161301070,0.4897,2603.2,2602.7,1.3849]
[1729161301616,0.38426,2603.1,2602.9,0.38428]
[1729161301804,0.38426,2603.1,2602.7,1.3849]
[1729161302093,0.4897,2603.2,2602.9,0.38427]
[1729161302299,0.87394,2603.2,2602.7,1.3849]
[1729161302613,0.87394,2603.2,2603.0,0.38425]
[1729161303005,0.38426,2603.1,2602.9,0.38427]
[1729161303302,0.87394,2603.2,2603.1,0.38425]
[1729161303501,0.4897,2603.2,2603.1,0.38425]
[1729161303709,3.59203,2603.3,2603.1,0.38425]
[1729161303900,0.38423,2603.2,2603.1,0.38425]
[1729161304099,3.2078,2603.3,2602.7,2.38539499]
[1729161304297,0.38424,2603.2,2603.1,0.38424]
[1729161304711,3.2078,2603.3,2603.2,0.38423]
[1729161304904,0.38429,2602.9,2602.8,0.38429]
[1729161305211,0.38429,2602.8,2602.7,0.4611]
[1729161305404,0.4585,2602.8,2602.4,0.38435]
[1729161305596,2.99,2602.7,2602.3,0.4887]
[1729161305907,0.4585,2602.8,2602.3,0.4887]
[1729161306298,3.2078,2602.6,2602.3,0.4887]
[1729161306501,0.38435,2602.5,2602.4,0.38434]
[1729161306702,3.2078,2602.6,2602.3,0.4887]
[1729161306904,3.2078,2602.6,2602.5,0.38434]
[1729161307299,0.38434,2602.5,2602.4,0.38435]
[1729161307500,3.2078,2602.6,2602.5,0.38434]
[1729161308302,3.2078,2602.6,2602.3,0.4887]
[1729161308501,3.59213,2602.6,2602.3,0.4887]
[1729161308701,3.59213,2602.6,2602.5,0.38434]
[1729161308702,3.2078,2602.6,2602.5,0.38434]
[1729161309402,44.252,2603.0,2602.5,0.38434]
[1729161309403,6.1978,2603.2,2602.5,3.8424]
[1729161309606,0.4907,2602.9,2602.3,3.4787]
[1729161309800,0.38435,2602.5,2602.4,0.38435]
[1729161310108,0.38434,2602.5,2602.4,0.38435]
[1729161310503,0.38433,2602.6,2602.5,0.38433]
[1729161310700,0.38434,2602.5,2602.4,0.38434]
[1729161310910,0.38433,2602.6,2602.5,0.38433]
[1729161311110,0.38435,2602.5,2602.4,0.38435]
[1729161311616,0.38434,2602.6,2602.5,0.38433]
[1729161312305,0.38435,2602.5,2602.4,0.38434]
[1729161312500,0.38435,2602.5,2602.2,3.6939]
[1729161312501,3.2078,2602.5,2601.9,3.2078]
[1729161312706,0.38439,2602.2,2602.1,0.38438]
[1729161312904,0.38441,2602.0,2601.9,3.59221]
[1729161313108,3.85691,2602.1,2601.9,3.2078]
[1729161313309,3.85691,2602.1,2602.0,0.38441]
[1729161313511,3.4725,2602.1,2601.7,0.96114]
[1729161313716,6.1978,2601.9,2601.8,0.38444]
[1729161314010,3.2078,2601.9,2601.8,0.38444]
[1729161314315,3.4725,2602.1,2601.4,4.67185]
[1729161314510,0.38442,2602.0,2601.9,0.38441]
[1729161314912,3.4725,2602.1,2601.8,0.38443]
[1729161314913,0.38444,2601.9,2601.8,0.38443]
[1729161315213,0.38444,2601.9,2601.8,0.38444]
[1729161315214,0.4625,2601.9,2601.8,0.38444]
[1729161315411,0.84693,2601.9,2601.8,0.38444]
[1729161315615,0.84693,2601.9,2601.2,4.91266]
[1729161315616,0.96111,2601.8,2601.0,4.99197384]
[1729161315814,2.99,2601.2,2601.0,4.99197384]
[1729161316113,0.4625,2601.1,2601.0,5.37653384]
[1729161316308,4.3073,2601.1,2601.0,5.37653384]
[1729161316503,4.3073,2601.1,2601.0,4.99197384]
[1729161316701,8.36284,2601.1,2601.0,4.99197384]
[1729161317415,7.2973,2601.1,2600.4,3.2078]
[1729161317613,3.37459,2600.9,2600.6,0.38461]
[1729161317816,3.37459,2600.9,2600.7,0.3846]
[1729161317817,2.99,2600.9,2600.7,0.3846]
[1729161318120,2.99,2600.9,2600.6,0.38461]
[1729161318319,2.99,2600.9,2600.8,0.38459]
[1729161318506,2.99,2600.9,2600.5,1.4749]
[1729161318812,0.4625,2601.1,2600.6,0.38461]
[1729161319015,2.99,2600.7,2600.6,0.38461]
[1729161319312,2.99,2600.7,2600.0,0.2]
[1729161319676,2.99,2600.7,2600.4,0.38464]
[1729161319811,2.99,2600.7,2600.5,0.38463]
[1729161320408,2.99,2600.7,2600.3,1.5073]
[1729161320610,2.99,2600.4,2600.3,1.89196]
[1729161320807,6.1978,2600.9,2600.8,0.38459]
[1729161321310,2.99,2600.9,2600.8,0.38459]
[1729161321511,7.94130949,2609.3,2600.8,7.0526]
[1729161321512,3.2078,2601.6,2600.8,7.0526]
[1729161321714,0.4897,2602.1,2601.5,3.2078]
[1729161321910,3.2078,2602.2,2601.6,3.2078]
[1729161322112,2.99,2602.1,2601.7,3.2078]
[1729161322517,2.99,2602.1,2602.0,0.38441]
[1729161323014,2.99,2602.1,2601.9,0.38442]
[1729161323220,2.99,2602.1,2601.7,3.2078]
[1729161323443,2.99,2602.1,2602.0,0.38441]
[1729161323815,3.2078,2602.4,2601.7,3.2078]
[1729161323816,3.69,2602.2,2601.7,3.2078]
[1729161324017,3.69,2602.2,2602.1,0.3844]
[1729161324213,42.224,2602.8,2602.1,0.3844]
[1729161324214,44.49,2602.8,2602.1,0.3844]
[1729161324412,3.2078,2602.9,2602.5,3.2078]
[1729161324606,3.69,2602.7,2602.4,1.0009]
[1729161324815,3.69,2602.7,2602.5,0.38433]
[1729161325537,3.69,2602.7,2602.4,0.503]
[1729161325820,3.69,2602.7,2602.6,0.38432]
[1729161326522,3.69,2602.7,2602.6,3.59212]
[1729161326906,40.8,2603.0,2602.6,3.2078]
[1729161327210,3.69,2603.2,2602.6,3.2078]
[1729161327408,3.69,2603.2,2602.4,0.503]
[1729161327615,0.38427,2603.0,2602.8,0.38429]
[1729161327913,0.38427,2603.0,2602.7,0.3843]
[1729161328113,0.38427,2603.0,2602.5,3.2078]
[1729161328114,40.8,2603.1,2602.5,3.2078]
[1729161328519,40.8,2603.1,2603.0,0.38426]
[1729161328916,44.6416,2603.1,2603.0,0.38426]
[1729161329218,3.8416,2603.1,2603.0,0.38426]
[1729161329418,0.4735,2603.6,2603.5,0.38419]
[1729161329627,3.69,2604.0,2603.8,0.38414]
[1729161329820,3.5919,2604.1,2604.0,0.38412]
[1729161330125,3.5919,2604.1,2603.5,3.2078]
[1729161330126,0.4735,2604.2,2603.6,0.38417]
[1729161330421,40.8,2604.2,2604.1,0.38409]
[1729161330631,3.7172,2605.0,2604.1,3.2078]
[1729161330924,0.38395,2605.2,2604.9,0.38397]
[1729161331226,3.69,2605.3,2604.5,0.96011]
[1729161331413,3.69,2605.0,2604.2,1.4796]
[1729161331817,0.38399,2604.9,2604.7,0.384]
[1729161332014,3.69,2605.0,2604.8,0.38399]
[1729161332015,0.38397,2605.0,2604.8,0.38399]
[1729161332220,3.2078,2605.2,2604.5,3.2078]
[1729161332719,6.41794556,2605.5,2604.4,3.69]
[1729161332720,6.80184556,2605.5,2605.3,0.38392]
[1729161332918,5.90854556,2605.5,2604.8,0.96]
[1729161333223,5.90854556,2605.5,2605.3,0.38392]
[1729161333519,5.90854556,2605.5,2604.7,3.2078]
[1729161333520,5.90854556,2605.5,2605.4,0.38391]
[1729161333917,5.90854556,2605.5,2605.4,4.22231]
[1729161334318,5.90854556,2605.5,2605.1,0.9689]
[1729161334513,3.69,2605.7,2605.2,0.38393]
[1729161334715,3.69,2605.7,2605.1,0.4965]
[1729161334716,0.38389,2605.6,2605.1,0.4965]
[1729161334926,0.38392,2605.4,2605.2,0.38393]
[1729161335116,3.69,2605.7,2605.1,0.4965]
[1729161335320,0.38387,2605.7,2605.5,0.38389]
[1729161335623,0.38389,2605.6,2605.4,0.3839]
[1729161335818,3.69,2605.7,2605.3,0.38392]
[1729161336023,0.3839,2605.5,2605.2,0.38393]
[1729161336319,0.38388,2605.6,2605.2,0.38393]
[1729161336516,3.69,2605.7,2605.1,0.4965]
[1729161336720,0.38392,2605.4,2605.1,0.4965]
[1729161337017,3.69,2605.5,2604.6,3.2078]
[1729161337315,0.38394,2605.2,2605.0,0.38396]
[1729161337517,3.69,2605.5,2605.1,0.38395]
[1729161337518,0.38393,2605.3,2605.1,0.38395]
[1729161337716,0.38393,2605.3,2604.6,3.2078]
[1729161337928,0.38393,2605.3,2605.1,0.38395]
[1729161338118,3.69,2605.5,2604.6,3.2078]
[1729161338414,0.38395,2605.2,2604.6,3.2078]
[1729161338605,0.38391,2605.4,2605.0,0.38397]
[1729161338812,0.38394,2605.2,2604.6,3.2078]
[1729161339004,0.38394,2605.2,2604.9,0.38397]
[1729161339312,0.38393,2605.3,2605.1,0.38395]
[1729161339512,0.38394,2605.2,2605.0,0.38396]
[1729161339696,3.69,2605.2,2604.6,3.2078]
[1729161339902,0.38401,2604.7,2604.6,3.2078]
[1729161340409,4.07401,2604.7,2604.6,3.2078]
[1729161340808,0.38401,2604.7,2604.6,3.2078]
[1729161341307,4.07401,2604.7,2604.6,3.2078]
[1729161342095,44.87401,2604.7,2604.6,3.2078]
[1729161343194,45.45007,2604.7,2604.2,3.2078]
[1729161343394,0.38405,2604.5,2604.3,0.38406]
[1729161343589,0.38406,2604.4,2604.3,0.38406]
[1729161343896,0.38409,2604.2,2603.7,0.96038]
[1729161344094,3.69,2604.4,2603.5,3.2078]
[1729161344592,0.38412,2604.0,2603.5,3.2078]
[1729161344893,3.69,2604.4,2604.0,0.38411]
[1729161344894,0.38409,2604.2,2604.0,0.38411]
[1729161345305,3.2078,2604.6,2603.8,3.2078]
[1729161345700,3.69,2604.4,2603.5,3.2078]
[1729161346004,0.38417,2603.6,2603.5,3.2078]
[1729161346188,3.69,2604.1,2603.5,3.2078]
[1729161346387,4.66089,2604.3,2603.5,3.2078]
[1729161346587,3.7007,2604.3,2603.5,3.2078]
[1729161346793,3.7007,2604.3,2603.9,0.38412]
[1729161347000,0.38411,2604.1,2603.5,4.16826]
[1729161347196,3.7007,2604.3,2603.5,3.2078]
[1729161347398,0.96022,2604.2,2603.5,3.2078]
[1729161347601,0.38415,2603.8,2603.6,0.38417]
[1729161347793,0.38415,2603.8,2603.5,3.2078]
[1729161347794,3.7007,2604.3,2603.5,3.2078]
[1729161348100,3.2078,2604.3,2604.2,0.38409]
[1729161348302,0.38413,2603.9,2603.5,3.2078]
[1729161348602,0.38417,2603.6,2603.5,3.2078]
[1729161348899,4.16806,2604.1,2603.5,7.0486]
[1729161349100,0.38417,2603.6,2603.5,3.59199]
[1729161349402,0.38416,2603.7,2603.6,0.38417]
[1729161349595,0.38416,2603.8,2603.6,0.38417]
[1729161349797,0.3841,2604.1,2603.6,0.38417]
[1729161350001,0.96022,2604.2,2603.5,3.2078]
[1729161350196,0.38415,2603.8,2603.6,0.38417]
[1729161350504,0.38415,2603.8,2603.5,3.2078]
[1729161350804,0.38415,2603.8,2603.6,4.22496]
[1729161351100,0.96022,2604.2,2603.7,0.38415]
[1729161351101,0.38414,2603.9,2603.7,0.38415]
[1729161351404,0.38413,2603.9,2603.8,0.38414]
[1729161351589,3.705,2604.6,2603.5,3.2078]
[1729161351902,3.705,2604.6,2603.4,3.69]
[1729161351903,0.38405,2604.5,2604.4,0.38405]
[1729161352109,3.705,2604.6,2604.5,0.38404]
[1729161352110,4.08903,2604.6,2604.5,0.38404]
[1729161352400,3.2078,2604.6,2604.5,0.38404]
[1729161353198,0.4927,2605.1,2604.4,3.2078]
[1729161353609,0.38398,2605.0,2604.9,0.38398]
[1729161353902,0.38397,2605.0,2604.9,0.38398]
[1729161354199,0.4927,2605.1,2604.4,4.16793]
[1729161354401,0.4927,2605.1,2604.4,3.2078]
[1729161354593,0.38398,2605.0,2604.5,0.96011]
[1729161354801,41.2927,2605.1,2604.5,0.96011]
[1729161355503,41.2927,2605.1,2604.9,0.38397]
[1729161355504,0.38397,2605.0,2604.9,0.38397]
[1729161355997,0.384,2604.8,2604.7,0.384]
[1729161356203,4.1827,2605.1,2604.0,6.8978]
[1729161356402,0.95993,2605.0,2604.0,7.85807]
[1729161356608,0.96001,2604.8,2604.0,7.85807]
[1729161356903,0.38405,2604.5,2604.4,0.38405]
[1729161357093,4.65001,2604.8,2604.0,3.2078]
[1729161357305,0.38406,2604.4,2604.3,0.38407]
[1729161357909,0.38404,2604.5,2604.4,0.38405]
[1729161358104,0.95994,2605.0,2604.0,4.16808]
[1729161358307,0.95996,2604.9,2604.0,4.16808]
[1729161358500,0.38404,2604.5,2604.4,0.38405]
[1729161358700,0.38407,2604.4,2604.3,0.38407]
[1729161359199,0.38407,2604.4,2604.0,3.2078]
[1729161359200,0.38405,2604.5,2604.4,0.38406]
[1729161359609,49.15043,2605.1,2604.1,0.96026]
[1729161359903,0.38405,2604.5,2604.4,0.38405]
[1729161360706,0.38404,2604.6,2604.5,0.38404]
[1729161361604,0.38404,2604.6,2604.0,4.16808]
[1729161361806,0.95993,2605.0,2604.3,3.2078]
[1729161361994,0.95993,2605.0,2604.2,0.96022]
[1729161361995,48.1905,2605.1,2604.2,3.2078]
[1729161362196,1.9893,2605.5,2604.7,3.2078]
[1729161362197,6.8978,2605.4,2604.7,3.2078]
[1729161362396,3.2078,2605.4,2605.0,0.38396]
[1729161362603,0.38395,2605.2,2605.1,0.38395]
[1729161362801,3.2078,2605.4,2604.8,1.965]
[1729161363000,40.8,2605.5,2605.4,0.3839]
[1729161363001,0.3839,2605.5,2605.4,0.3839]
[1729161363506,41.2716,2605.6,2605.1,0.95989]
[1729161363812,0.4716,2605.6,2605.1,0.95989]
[1729161364106,0.38398,2604.9,2604.8,1.38899]
[1729161364301,0.38398,2605.0,2604.9,0.38398]
[1729161364502,6.8978,2605.4,2604.8,1.005]
[1729161364697,0.384,2604.8,2604.7,3.2078]
[1729161364902,3.69,2605.2,2604.7,3.2078]
[1729161364903,4.64987,2605.2,2604.7,3.2078]
[1729161365408,0.38399,2604.9,2604.8,0.38399]
[1729161366005,4.64987,2605.2,2604.3,1.44708]
[1729161366199,0.95989,2605.1,2604.3,1.44708]
[1729161366405,3.2078,2605.1,2604.2,0.9953]
[1729161366605,0.38407,2604.3,2604.2,0.5058]
[1729161366914,0.96008,2604.6,2603.8,0.96036]
[1729161367205,0.38403,2604.6,2604.5,0.38404]
[1729161367404,0.38408,2604.3,2604.2,0.38408]
[1729161367605,0.3841,2604.2,2604.1,0.3841]
[1729161368403,0.38412,2604.0,2603.9,4.09382]
[1729161368605,0.38411,2604.1,2604.0,0.38411]
[1729161369041,0.38408,2604.3,2604.2,0.38408]
[1729161369401,0.96005,2604.7,2604.0,1.96079499]
[1729161369606,0.38405,2604.5,2604.4,0.38405]
[1729161370008,1.22623057,2604.8,2604.1,1.96074499]
[1729161370207,1.22623057,2604.8,2604.5,0.38404]
[1729161370208,0.38405,2604.6,2604.5,0.38404]
[1729161370515,0.38405,2604.6,2604.2,1.00049499]
[1729161370516,1.22623057,2604.8,2604.2,1.00049499]
[1729161370814,0.38405,2604.5,2604.4,0.38404]
[1729161371018,0.75063057,2604.9,2604.8,0.384]
[1729161371213,0.38395,2605.2,2605.1,0.38395]
[1729161371416,0.38395,2605.2,2604.8,0.96]
[1729161371417,0.38394,2605.3,2605.2,0.38393]
[1729161371808,0.38392,2605.4,2605.3,0.38392]
[1729161372010,0.75063057,2605.6,2605.0,4.16773]
[1729161372329,0.38389,2605.6,2605.0,4.16773]
[1729161372617,0.38388,2605.6,2605.5,0.38389]
[1729161373006,0.75063057,2605.7,2605.1,0.4786]
[1729161373311,0.38392,2605.3,2605.2,0.38393]
[1729161373513,0.38392,2605.3,2604.8,0.87199]
[1729161373514,3.69,2605.3,2604.8,0.87199]
[1729161373821,0.75063057,2605.2,2605.1,0.38395]
[1729161374411,0.75063057,2605.4,2604.8,0.488]
[1729161374605,0.38398,2605.0,2604.9,0.38398]
[1729161374920,0.38398,2604.9,2604.8,0.488]
[1729161375312,0.38398,2604.9,2604.7,0.384]
[1729161375313,0.95999,2604.9,2604.4,3.2078]
[1729161375534,0.38412,2604.0,2603.9,1.00049499]
[1729161375813,0.38413,2603.9,2603.7,4.07145]
[1729161376216,0.75063057,2604.2,2603.7,3.6873]
[1729161376522,0.3842,2603.4,2603.3,1.00049499]
[1729161377118,0.38419,2603.6,2603.3,0.38421]
[1729161377419,0.4925,2603.9,2603.6,0.38417]
[1729161377614,0.38412,2604.0,2603.2,3.2078]
[1729161377916,0.3841,2604.2,2603.5,3.2078]
[1729161378218,0.3841,2604.2,2603.9,0.38412]
[1729161378406,0.38411,2604.1,2603.9,0.38412]
[1729161378613,0.38412,2604.0,2603.6,0.4795]
[1729161379022,0.38412,2604.0,2603.8,0.38414]
[1729161379320,0.72043639,2604.3,2603.9,0.38413]
[1729161379321,0.38411,2604.1,2603.9,0.38413]
[1729161379521,0.96004,2604.7,2604.1,0.38409]
[1729161379522,0.38401,2604.7,2604.1,0.38409]
[1729161379825,0.38408,2604.3,2604.1,0.38409]
[1729161380020,3.2078,2604.7,2604.1,0.38409]
[1729161380325,0.7204612,2604.6,2603.9,3.2078]
[1729161380513,3.2078,2604.7,2603.9,3.2078]
[1729161380818,3.2078,2604.7,2604.2,3.2078]
[1729161381024,3.2078,2604.7,2604.6,0.38403]
[1729161381915,0.384,2604.8,2604.6,0.38403]